Cogmind - Beta 14 @@@ ROGUE MODE // 2024.11.16 @ 10:57:55 Player: Fangrelle Result: Destroyed by G-47 Trooper with Particle Gun Performance ------------- Evolutions (0) 0 Regions Visited (2) 400 Robots Destroyed (41) 205 Value Destroyed (796) 796 Prototype IDs (0) 0 Alien Tech Used (0) 0 Bonus (0) 0 TOTAL SCORE: 1401 Bonus ------- None Cogmind --------- Core Integrity 0/250 Matter 280/300 Energy 234/250 System Corruption 0% Temperature Cool (27) Movement Rolling (175) Ox5 Location -10/Mines Parts ------- > --- POWER (1) -------- Ion Engine > --- PROPULSION (2) --- Light Treads Compact Wheel > --- UTILITY (2) ------ Huge Storage Unit Targeting Computer > --- WEAPON (2) ------- EM Pulse Gun Grenade Launcher > --- INVENTORY (25) --- Light Ion Engine Improved Heat Sink Small Storage Unit Huge Storage Unit Large Battery (200) Hacking Suite Hacking Suite Light Assault Rifle Light Assault Rifle Light Assault Rifle Light Assault Rifle Mining Laser Peak State ------------ > --- POWER ------------ Ion Engine > --- PROPULSION ------- Light Treads Light Treads > --- UTILITY ---------- Huge Storage Unit Targeting Computer > --- WEAPON ----------- EM Pulse Gun Light Assault Rifle > --- INVENTORY -------- Ion Engine Wheel Compact Wheel Improved Heat Sink Small Storage Unit Huge Storage Unit Large Battery Light Assault Rifle Grenade Launcher [Rating: 8] Favorites ----------- Power Ion Engine Engine Ion Engine Propulsion Light Treads Treads Light Treads Leg Aluminum Leg Wheel Compact Wheel Utility Huge Storage Unit Device Structural Scanner Storage Huge Storage Unit Processor Targeting Computer Weapon Light Assault Rifle Energy Gun EM Pulse Gun Ballistic Gun Light Assault Rifle Launcher Grenade Launcher Special Weapon Mining Laser Special Melee Weapon Datajack Build | -11 -10 -10 ------- Run | Yrd Mat Min Slots Evolved . | . . . Power . | . . . Propulsion . | . . . Utility . | . . . Weapon . | . . . Parts Attached 25 | . 23 2 Power 2 | . 2 . Engine 2 | . 2 . Core . | . . . Reactor . | . . . Propulsion 6 | . 5 1 Treads 4 | . 4 . Leg . | . . . Wheel 2 | . 1 1 Hover . | . . . Flight . | . . . Utility 3 | . 3 . Device 1 | . 1 . Storage 1 | . 1 . Processor 1 | . 1 . Hackware . | . . . Protection . | . . . Artifact . | . . . Weapon 14 | . 13 1 Energy Gun 3 | . 3 . Energy Cannon . | . . . Ballistic Gun 5 | . 5 . Ballistic Cannon . | . . . Launcher 3 | . 2 1 Special Weapon 2 | . 2 . Impact Weapon . | . . . Slashing Weapon . | . . . Piercing Weapon . | . . . Special Melee Weapon 1 | . 1 . Unidentified Prototypes . | . . . Parts Lost 3 | . 2 1 Power 1 | . 1 . Propulsion 1 | . . 1 Utility . | . . . Weapon 1 | . 1 . Highest Loss Streak 1 | . 1 1 To Critical Strikes . | . . . Average Slot Usage (%) 99 | . 99 97 Engine 14 | . 14 14 Treads 21 | . 22 14 Wheel 5 | . 4 11 Storage 14 | . 14 14 Processor 13 | . 13 14 Energy Gun 8 | . 8 14 Ballistic Gun 14 | . 14 8 Launcher 2 | . 1 5 Special Weapon 2 | . 2 . Peak Build Rating 8 | . 8 8 Average Rating 7 | . 7 7 On Entrance 6 | 6 6 8 Naked Turns . | . . . Heaviest Build 90 | 12 90 90 Greatest Support 40 | 20 40 20 Greatest Overweight (x) 5 | . 5 5 Average Overweight (x) 3 | . 2 4 Largest Inventory Capacity 25 | . 25 25 Average Capacity 24 | . 24 25 Most Carried 13 | . 13 12 Average Carried 10 | . 10 11 Final Capacity 25 | 8 25 25 Final Carried 12 | 6 10 12 Class Distribution -------------------- 100% | Mutant Dominant Class ---------------- Mutant | -10/Materials Mutant | -10/Mines Resources | -11 -10 -10 ----------- Run | Yrd Mat Min Matter Collected 670 | 200 434 36 Remotely . | . . . Salvage Created 963 | . 865 98 Parts 91 | . 78 13 Haulers Intercepted 2 | . 2 . Recyclers Shooed . | . . . Parts Field Recycled . | . . . Retrieved Matter . | . . . Parts Self-Destructed . | . . . Prevented . | . . . Kills | -11 -10 -10 ------- Run | Yrd Mat Min Combat Hostiles Destroyed 26 | . 20 6 Guns 16 | . 12 4 AOE 10 | . 8 2 Classes Destroyed 8 | . 8 . Worker 2 | . 2 . Builder 3 | . 3 . Tunneler 2 | . 2 . Hauler 2 | . 2 . Operator 3 | . 3 . Watcher 3 | . 3 . Swarmer 12 | . 6 6 Grunt 14 | . 14 . Best Kill Streak 6 | . 6 3 Combat Bots Only 5 | . 5 3 Max Kills in Single Turn 3 | . 3 2 Gunslinging 1 | . . 1 Exploded 2 | . 2 2 Melee . | . . . Uniques/NPCs Destroyed . | . . . Combat | -11 -10 -10 -------- Run | Yrd Mat Min Hostile Shots Fired 128 | . 91 37 Missed 45 | . 31 14 Damage Taken 1028 | . 822 206 Core 252 | . 182 70 Absorbed by Shields . | . . . Regen/Repaired (Parts) 39 | . 39 . Core Remaining (%) 100 | 100 . . Volleys Fired 111 | . 97 14 Largest 2 | . 2 2 Hottest 140 | . 140 70 Shots Fired 195 | . 167 28 Gun 174 | . 149 25 Cannon . | . . . Launcher 14 | . 11 3 Special 7 | . 7 . Kinetic 115 | . 104 11 Thermal 7 | . 7 . Explosive 14 | . 11 3 Electromagnetic 59 | . 45 14 Robot Hit Streak 14 | . 14 4 Robot Miss Streak 3 | . 2 3 Penetration Max . | . . . Secondary Targets 3 | . 1 2 Max Gunslinging Chain 1 | . 1 1 Shots Hit Robots 120 | . 107 13 Core Hits 70 | . 63 7 Critical Kills . | . . . Critical Parts Destroyed . | . . . Critical Strikes 1 | . 1 . Corrupt 1 | . 1 . Melee Attacks . | . . . Impact . | . . . Slashing . | . . . Piercing . | . . . Sneak Attacks . | . . . Combat Hostiles . | . . . Follow-up Attacks . | . . . Damage Inflicted 2196 | . 1951 245 Guns 1139 | . 1008 131 Cannons . | . . . Explosions 1009 | . 895 114 Melee . | . . . Ramming . | . . . Kinetic 598 | . 545 53 Thermal 164 | . 164 . Explosive 893 | . 779 114 Electromagnetic 541 | . 463 78 Impact . | . . . Slashing . | . . . Piercing . | . . . Highest Corruption . | . . . Average Corruption . | . . . Corruption Purged . | . . . Corruption Blocked . | . . . Overload Shots . | . . . Overflow Damage 38 | . 38 . Projectiles . | . . . Explosions 38 | . 38 . Melee . | . . . Knockbacks . | . . . Impact . | . . . Kinetic . | . . . Secondary . | . . . Self-Inflicted Damage 49 | . 49 . Shots 2 | . 2 . Rammed . | . . . Targets Rammed . | . . . Kicked . | . . . Crushed . | . . . Highest Temperature 110 | . 110 40 Average Temperature 27 | . 28 17 Received Heat Transfer 408 | . 381 27 Siege Activations . | . . . Robots Corrupted 1 | . 1 . Combat Hostiles . | . . . Parts Fried 4 | . 4 . Impact Corruptions . | . . . Robots Melted . | . . . Combat Hostiles . | . . . Parts Melted . | . . . Heat Transferred 250 | . 250 . Parts Sabotaged . | . . . Parts Stolen . | . . . Parts Stripped . | . . . Power Chain Reactions 2 | . 2 . Alert | -11 -10 -10 ------- Run | Yrd Mat Min Peak Influence 320 | . 320 255 Initial 57 | . . 57 Average 137 | . 135 163 Maximum Alert Level 1 | . 1 1 Low Security (%) 90 | . 93 58 Level 1 9 | . 6 41 Level 2 . | . . . Level 3 . | . . . Level 4 . | . . . Level 5 . | . . . High Security . | . . . Max Security . | . . . Squads Dispatched 4 | . 4 . Investigation 2 | . 2 . Extermination . | . . . Reinforcement 2 | . 2 . Assault . | . . . Garrison . | . . . Intercept . | . . . Searches Triggered . | . . . Construction Impeded . | . . . Haulers Reinforced . | . . . Active Scanning Responses . | . . . Cargo Convoy Interrupts . | . . . Stealth | -11 -10 -10 --------- Run | Yrd Mat Min Distress Signals 1 | . 1 . Communications Jammed . | . . . Distress Signals . | . . . Times Spotted 42 | . 35 7 Peak Tracking Total 4 | . 4 3 Tactical Retreats 2 | . 1 1 Traps | -11 -10 -10 ------- Run | Yrd Mat Min Traps Triggered 1 | . 1 . Indirectly . | . . . Trap Hack Attempts 24 | . 24 . Triggered . | . . . Disarmed . | . . . Reprogrammed 2 | . 2 . Reused . | . . . Traps Extracted . | . . . Installed . | . . . Triggered 1 | . . 1 Machines | -11 -10 -10 ---------- Run | Yrd Mat Min Machines Disabled 3 | . 3 . Max in Single Turn 2 | . 2 . Machines Repaired . | . . . Machines Dismantled . | . . . Machines Sabotaged . | . . . Overloaded Fab Kills . | . . . Hacking | -11 -10 -10 --------- Run | Yrd Mat Min Machines Accessed 8 | . 8 . Terminals 6 | . 6 . Fabricators . | . . . Repair Stations 1 | . 1 . Recycling Units 1 | . 1 . Scanalyzers . | . . . Garrison Access . | . . . Total Hacks 24 | . 24 . Successful 14 | . 14 . Failed 10 | . 10 . Catastrophic . | . . . Database Lockouts . | . . . Manual 19 | . 19 . Terminals 18 | . 18 . Fabricators . | . . . Repair Stations 2 | . 2 . Recycling Units 4 | . 4 . Scanalyzers . | . . . Garrison Access . | . . . Terminal Hacks . | . . . Fabricator Hacks . | . . . Repair Station Hacks 2 | . 2 . Scan Component 1 | . 1 . Repair 1 | . 1 . Recycling Unit Hacks 2 | . 2 . Report Inventory 1 | . 1 . Retrieve Components 1 | . 1 . Scanalyzer . | . . . Garrison Access Hacks . | . . . Unauthorized Hacks 10 | . 10 . Terminals 9 | . 9 . Assimilate 3 | . 3 . Botnet 4 | . 4 . Operators 1 | . 1 . Skim 1 | . 1 . Fabricators . | . . . Repair Stations . | . . . Recycling Units 1 | . 1 . Tunnel 1 | . 1 . Scanalyzers . | . . . Garrison Access . | . . . Data Cores Recovered . | . . . Used . | . . . Hacking Detections 6 | . 6 . Full Trace Events 2 | . 2 . Feedback Events . | . . . Feedback Blocked . | . . . Robot Schematics Acquired . | . . . Robots Built . | . . . Authchips . | . . . Time . | . . . Total Robot Build Rating . | . . . Part Schematics Acquired . | . . . Parts Built . | . . . Authchips . | . . . Time . | . . . Total Part Build Rating . | . . . Parts Repaired 1 | . 1 . Time 26 | . 26 . Parts Recycled . | . . . Recycled Matter . | . . . Retrieved Matter . | . . . Retrieved Components 9 | . 9 . Parts Scanalyzed . | . . . Part Schematics Acquired . | . . . Parts Damaged . | . . . Bothacking | -11 -10 -10 ------------ Run | Yrd Mat Min Used RIF Installer . | . . . Robots Hacked . | . . . Non-combat . | . . . Combat . | . . . Robot Hacks Applied . | . . . Relay Couplers Released . | . . . Fabnet Peak Effective % . | . . . Robots Rewired . | . . . Allies Hacked . | . . . Hacks Repelled . | . . . Allies | -11 -10 -10 -------- Run | Yrd Mat Min Total Allies 1 | . 1 . Largest Group 1 | . 1 . Highest-Rated Group 10 | . 10 . Highest-Rated Ally 10 | . 10 . Total Orders 1 | . 1 . STAY 1 | . 1 . Ally Attacks . | . . . Total Damage . | . . . Kills . | . . . Allies Corrupted . | . . . Allies Melted . | . . . Intel | -11 -10 -10 ------- Run | Yrd Mat Min Robot Analysis Total . | . . . Derelict Logs Recovered . | . . . Drone Launches . | . . . Drone Recoveries . | . . . Exploration | -11 -10 -10 ------------- Run | Yrd Mat Min Turns Passed 3446 | . 3181 265 Spaces Moved 1098 | 1 979 118 Core . | . . . Treads 617 | . 612 5 Legs 51 | 1 50 . Wheels 430 | . 317 113 Hover . | . . . Flight . | . . . Fastest Speed 120 | 120 120 175 Average Speed 247 | 120 255 187 Slowest Speed 480 | 120 320 480 Overloaded Moves . | . . . Propulsion Burnouts . | . . . Robots Hopped . | . . . Cave-ins Triggered . | . . . Exploration Rate (%) 41 | 2 98 25 Regions Visited 2 Branch Regions 1 Pre-discovered Areas 1 | . 1 . Known Exits Taken . | . . . Unknown Exits Taken 2 | 1 1 . Scrap Searched . | . . . Spaces Dug 19 | . 19 . Terrain Destroyed 102 | . 83 19 Melee . | . . . Projectile 4 | . 4 . AOE 98 | . 79 19 Terrain Rammed . | . . . Walls Destroyed . | . . . Machines Disabled . | . . . Actions | -11 -10 -10 --------- Run | Yrd Mat Min Total 1637 | . 1500 137 Wait 358 | . 358 . Move 1096 | . 978 118 Hop . | . . . Pick Up 12 | . 9 3 Fast Attach 4 | . 4 . Attach 6 | . 5 1 Detach 3 | . 3 . Swap 15 | . 14 1 Drop 8 | . 8 . Fire 111 | . 97 14 Melee . | . . . Ram . | . . . Kick . | . . . Crush . | . . . Escape Stasis . | . . . Rewire . | . . . Trap 24 | . 24 . Miscellaneous . | . . . Route ------- -11/Scrapyard -10/Materials (discovered 4 exits: [*Mat x3] / [*Min]) -10/Mines History --------- Turn | Location | Event 1 | -11/Scrapyard | Discovered new exit (range 0) 1 | -11/Scrapyard | Entered Materials 304 | -10/Materials | Build established: Mutant 438 | -10/Materials | Discovered new exit (range 16) 724 | -10/Materials | Discovered new exit (range 9) 1149 | -10/Materials | Core integrity fell below 50% 1212 | -10/Materials | Discovered new exit (range 10) 1667 | -10/Materials | Discovered new exit (range 15) 2534 | -10/Materials | Repaired EM Pulse Gun 3182 | -10/Materials | Entered Mines 3191 | -10/Mines | Met a Derelict bent on vengeance 3336 | -10/Mines | Core integrity fell below 20% 3447 | -10/Mines | Destroyed by G-47 Trooper with Particle Gun Last Messages --------------- 03215_ Acquired 3 matter. 03230_ Acquired Lgt. Assault Rifle. 03237_ Acquired Lgt. Ion Engine. 03238_ Acquired 10 matter. 03307_ K-01 Serf collects debris. 03318_ S-10 Pest destroyed. 03320_ K-01 Serf collects debris. 03337_ S-10 Pest destroyed. 03345_ K-01 Serf collects debris. 03346_ Acquired 12 matter. 03347_ Acquired 11 matter. 03347_ K-01 Serf collects debris. 03349_ R-06 Scavenger collects Lgt. Ion Engine. 03350_ K-01 Serf collects debris. 03354_ R-06 Scavenger collects Lgt. Ion Engine. 03356_ K-01 Serf collects debris. 03357_ R-06 Scavenger collects Lgt. Assault Rifle. 03360_ K-01 Serf collects debris. 03413_ The unstable cave ceiling collapses. 03414_ K-01 Serf collects debris. Map ----- +----------------------------------------------------+ | ????????????# ##???????##%==##?????????? | | ????????????## ##?????????## ##??????????? | | ?????????????###???????????# #???????????? | | ???????????????????????????# #???????????? | | ???????????????????????????# #???????????? | | ???????????????????????????# #???????????? | | ???????#####????????????#### ##??????????? | | ?????### ##?????????### #??????????? | | ????## ########### #??????????? | | ### #??????????? | | [% # #??????????? | | ######??????????? | | ### #### ## #???????????????? | | ??#????# #### #???????????????? | | ??????# ##??## #???????????????? | | ??????# #????## r ##??????????????? | | ????? #?????## #??????????????? | | ????#### #?###??###r #??????????????? | | ???????# ## ### ##??????????????? | | ???????# #???????????????? | | ???????# #???????????????? | | ???????## #???????????????? | | ????????### ## ## ##??????????????? | | ??????????## ??####### #???????? #? | | ???????????## ????????## ### *=% #?? | | ????????????#?????????# t@ g %= #?? | | ?????????????????????# #?? | | ????????????????????# ### #?? | | ????????????????????# #???? #?? | | ????????????????????# #?????? #?? | | ????????????????????## ##???????? ??? | | ?????????????????????### #??????????? ??? | | ???????????????????????# #???????????????? | | ???????????????????????# ????????????????? | | ???????????????????????# ????????????????? | | ??????????????????????? ????????????????? | | ???????????????????????##????????????????? | | ?????????????????????????????????????????? | | ?????????????????????????????????????????? | | ?????????????????????????????????????????? | | ?????????????????????????????????????????? | | ?????????????????????????????????????????? | | ?????????????????????????????????????????? | | ?????????????????????????????????????????? | | ?????????????????????????????????????????? | | ?????????????????????????????????????????? | | ?????????????????????????????????????????? | | ?????????????????????????????????????????? | | ?????????????????????????????????????????? | | ?????????????????????????????????????????? | +----------------------------------------------------+ Best States ------------- Heat Dissipation 25 Energy Generation 10 Energy Capacity 250 Matter Stores 300 Matter Capacity 300 Sight Range 16 Terrain Scan Density 10 Evasion (%) 55 Targeting Accuracy 5 Recoil Reduction 2 Item Schematics ----------------- None Robot Schematics ------------------ None Fabricated ------------ Nothing Alien Tech Used ----------------- None Achievements -------------- None Challenges ------------ None Game ------ Seed TerrainMultinovaPower Manual? 0 Play Time 00:13:43 Cumulative 89.8 hours Start 2024.11.16 @ 10:45:16 End 2024.11.16 @ 10:57:55 Sessions 1 Manual Loads 0 Difficulty Rogue Special Mode None Game No. 157 Rogue 157 Adventurer 0 Explorer 0 Win Type - Total 0 Types 0/0/0/0/0/0/0/0/0 Lore% 41 Gallery% 36 Achievement% 34 Wizard Run 0 Options --------- Layout 0 ASCII 0 Keyboard 0 Movement Mouse Keybinds 0 Fullscreen 1 Font 24/Cog Map View 91x25 Zoom Use 86% Tactical HUD 1 Map Filters NONE Filters NONE Steam 1 RUN: 3dd8c133-51ae-4814-90ab-21c64673b2a9